fUST/lending_fUST_20240629
["ID","MTS","AMOUNT","RATE_DAILY","PERIOD"]
[330603160,1719609097023,-1252.86,0.00026575,4]
[330603161,1719609097032,-748.7,0.00026575,4]
[330603162,1719609097042,-3105.39,0.00026575,4]
[330603163,1719609097052,-725.68,0.00026575,4]
[330603164,1719609097062,-416.75114516,0.00026575,4]
[330603165,1719609097072,-1391.86,0.00026575,4]
[330603166,1719609097082,-500.0,0.00026575,4]
[330603167,1719609097091,-1221.39,0.00026575,4]
[330603168,1719609097101,-598.89,0.00026575,4]
[330603169,1719609097112,-761.97,0.00026575,4]
[330603170,1719609097121,-500.0,0.00026575,4]
[330603171,1719609097130,-1916.95,0.00026575,4]
[330603172,1719609097140,-911.28,0.00026575,4]
[330603173,1719609097149,-500.0,0.00026575,4]
[330603174,1719609097158,-1274.5,0.00026575,2]
[330603175,1719609097167,-786.07,0.00026575,4]
[330603176,1719609097177,-2096.46,0.00026575,4]
[330603177,1719609097186,-1472.43,0.00026575,4]
[330603178,1719609097196,-3430.95,0.00026575,4]
[330603179,1719609097206,-713.1,0.00026575,4]
[330603180,1719609097215,-1080.39,0.00026575,4]
[330603181,1719609097224,-32522.18,0.00026575,4]
[330603182,1719609097234,-2759.26,0.00026575,4]
[330603183,1719609097243,-1561.25,0.00026575,4]
[330603184,1719609097254,-1056.09,0.00026575,4]
[330603185,1719609097264,-626.89,0.00026575,4]
[330603186,1719609097274,-644.23,0.00026575,4]
[330603187,1719609097284,-919.74,0.00026575,4]
[330603188,1719609097294,-526.73,0.00026575,4]
[330603189,1719609097304,-500.0,0.00026575,4]
[330603190,1719609097314,-900.52,0.00026575,4]
[330603191,1719609097324,-2915.15,0.00026575,4]
[330603192,1719609097334,-1075.26,0.00026575,4]
[330603193,1719609097343,-898.0,0.00026575,4]
[330603194,1719609097353,-2606.56,0.00026575,4]
[330603195,1719609097363,-1017.0,0.00026575,4]
[330603196,1719609097372,-500.0,0.00026575,4]
[330603197,1719609097381,-769.17,0.00026575,4]
[330603198,1719609097391,-724.43,0.00026575,4]
[330603199,1719609097400,-500.0,0.00026575,4]
[330603200,1719609097409,-1811.19,0.00026575,4]
[330603201,1719609097418,-745.75,0.00026575,4]
[330603202,1719609097428,-1060.47,0.00026575,4]
[330603203,1719609097437,-555.14,0.00026575,4]
[330603204,1719609097446,-1646.45,0.00026575,4]
[330603205,1719609097456,-561.23,0.00026575,4]
[330603206,1719609097465,-1636.48,0.00026575,4]
[330603207,1719609097474,-2903.41,0.00026575,4]
[330603208,1719609097483,-500.0,0.00026575,4]
[330603209,1719609097492,-1643.03,0.00026575,4]
[330603210,1719609097500,-882.01,0.00026575,4]
[330603211,1719609097509,-23113.58,0.00026575,4]
[330603212,1719609097518,-628.52,0.00026575,4]
[330603213,1719609097528,-1414.53,0.00026575,4]
[330603214,1719609097536,-343.67973262,0.00026575,4]
[330603215,1719609097546,-500.0,0.00026575,4]
[330603216,1719609097555,-500.0,0.00026575,4]
[330603217,1719609097564,-555.85,0.00026575,4]
[330603218,1719609097573,-11320.71,0.00026575,4]
[330603219,1719609097582,-644.76,0.00026575,4]
[330603220,1719609097591,-585.25,0.00026575,4]
[330603221,1719609097600,-756.94,0.00026575,4]
[330603222,1719609097609,-1188.67,0.00026575,4]
[330603223,1719609097618,-788.02,0.00026575,4]
[330603224,1719609097627,-500.0,0.00026575,4]
[330603225,1719609097636,-1280.69,0.00026575,4]
[330603226,1719609097645,-2279.24,0.00026575,4]
[330603227,1719609097654,-500.0,0.00026575,4]
[330603228,1719609097663,-3712.0,0.00026575,4]
[330603229,1719609097672,-4032.61,0.00026575,4]
[330603230,1719609097681,-227.79,0.00026575,4]
[330603231,1719609097690,-1001.0,0.00026575,4]
[330603232,1719609097699,-2069.86,0.00026575,4]
[330603233,1719609097708,-5418.01,0.00026575,4]
[330603234,1719609097718,-826.19,0.00026575,4]
[330603235,1719609097727,-803.14,0.00026575,4]
[330603236,1719609097736,-939.69,0.00026575,4]
[330603237,1719609097745,-60694.4,0.00026575,4]
[330603238,1719609097755,-2175.07,0.00026575,4]
[330603239,1719609097764,-3733.28,0.00026575,4]
[330603240,1719609097774,-7121.33,0.00026575,4]
[330603241,1719609097782,-500.0,0.00026575,4]
[330603242,1719609097791,-521.59,0.00026575,4]
[330603243,1719609097800,-4094.82,0.00026575,4]
[330603244,1719609097810,-582.3,0.00026575,4]
[330603245,1719609097819,-834.09,0.00026575,4]
[330603246,1719609097828,-689.13,0.00026575,4]
[330603247,1719609097940,-1575.66,0.00026575,4]
[330603248,1719609097950,-1770.99,0.00026575,4]
[330603249,1719609097959,-12345.82,0.00026575,4]
[330603250,1719609097969,-651.08,0.00026575,4]
[330603251,1719609097978,-500.0,0.00026575,4]
[330603252,1719609097988,-1018.4,0.00026575,4]
[330603253,1719609097997,-252.44687884,0.00026575,4]
[330603254,1719609098007,-2468.56,0.00026575,4]
[330603255,1719609098021,-12723.98,0.00026575,4]
[330603256,1719609098030,-1210.66,0.00026575,4]
[330603257,1719609098040,-500.0,0.00026575,2]
[330603258,1719609098050,-923.2,0.00026575,4]
[330603259,1719609098060,-2010.28,0.00026575,4]
[330603260,1719609098072,-4814.91,0.00026575,4]
[330603261,1719609098082,-11513.48,0.00026575,4]
[330603262,1719609098097,-506.2,0.00026575,4]
[330603263,1719609098106,-10418.44,0.00026575,4]
[330603264,1719609098116,-500.0,0.00026575,4]
[330603265,1719609098126,-500.0,0.00026575,4]
[330603266,1719609098135,-959.34,0.00026575,4]
[330603267,1719609098145,-500.0,0.00026575,4]
[330603268,1719609098154,-1894.29,0.00026575,4]
[330603269,1719609098164,-655.11,0.00026575,4]
[330603270,1719609098173,-1813.93,0.00026575,4]
[330603271,1719609098184,-1715.47,0.00026575,4]
[330603272,1719609098193,-1262.66,0.00026575,4]
[330603273,1719609098202,-761.05,0.00026575,4]
[330603274,1719609098212,-535.3,0.00026575,4]
[330603275,1719609098222,-1055.6,0.00026575,4]
[330603276,1719609098232,-1710.79,0.00026575,4]
[330603277,1719609098241,-2194.15,0.00026575,4]
[330603278,1719609098252,-500.0,0.00026575,4]
[330603279,1719609098262,-979.7,0.00026575,4]
[330603280,1719609098271,-528.59,0.00026575,4]
[330603281,1719609098284,-628.71,0.00026575,4]
[330603282,1719609098293,-750.32,0.00026575,4]
[330603283,1719609098303,-586.77,0.00026575,4]
[330603284,1719609098312,-1021.86,0.00026575,4]
[330603285,1719609098323,-426.96241353,0.00026575,4]
[330603286,1719609098333,-10772.11,0.00026575,4]
[330603287,1719609098343,-740.26,0.00026575,4]
[330603288,1719609098353,-1018.02,0.00026575,4]
[330603289,1719609098363,-3099.44,0.00026575,4]
[330603290,1719609098374,-669.76,0.00026575,4]
[330603291,1719609098384,-600.27,0.00026575,4]
[330603292,1719609098394,-500.0,0.00026575,4]
[330603293,1719609098404,-546.35,0.00026575,4]
[330603294,1719609098413,-500.0,0.00026575,4]
[330603295,1719609098423,-4987.38,0.00026575,4]
[330603296,1719609098433,-4038.76,0.00026575,4]
[330603297,1719609098443,-2850.21,0.00026575,4]
[330603298,1719609098452,-1461.16,0.00026575,4]
[330603299,1719609098462,-3352.17,0.00026575,4]
[330603300,1719609098472,-621.88,0.00026575,4]
[330603301,1719609098491,-683.47,0.00026575,4]
[330603302,1719609098500,-1525.02,0.00026575,4]
[330603303,1719609098510,-23476.31,0.00026575,4]
[330603304,1719609098520,-206.95955826,0.00026575,4]
[330603305,1719609098531,-6462.45,0.00026575,4]
[330603306,1719609098541,-500.0,0.00026575,4]
[330603307,1719609098551,-9156.13,0.00026575,4]
[330603308,1719609098561,-1587.41,0.00026575,4]
[330603309,1719609098573,-596.64186564,0.00026575,4]
[330603310,1719609098582,-2718.89,0.00026575,4]
[330603311,1719609098591,-3000.0,0.0002658,2]
[330603312,1719609098601,-444.0,0.00026581,2]
[330603313,1719609098610,-312.0,0.00026581,2]
[330603314,1719609098620,-3000.0,0.0002659,2]
[330603315,1719609098629,-2056.11559343,0.000266,2]
[330603316,1719609098638,-3000.0,0.000266,2]
[330603317,1719609098647,-3000.0,0.0002661,2]
[330603318,1719609098657,-3000.0,0.0002662,2]
[330603319,1719609098667,-850.0,0.00026627,2]
[330603320,1719609098676,-3000.0,0.0002663,2]
[330603321,1719609098685,-3000.0,0.0002664,2]
[330603322,1719609098694,-3000.0,0.0002665,2]
[330603323,1719609098703,-3000.0,0.0002666,2]
[330603324,1719609098712,-3000.0,0.0002667,2]
[330603325,1719609098721,-3000.0,0.0002668,2]
[330603326,1719609098731,-3000.0,0.0002669,2]
[330603327,1719609098740,-3000.0,0.000267,2]
[330603328,1719609098749,-3000.0,0.0002671,2]
[330603329,1719609098759,-3000.0,0.0002672,2]
[330603330,1719609098768,-3000.0,0.0002673,2]
[330603331,1719609098778,-3000.0,0.0002674,2]
[330603332,1719609098787,-3000.0,0.0002675,2]
[330603333,1719609098796,-3000.0,0.0002676,2]
[330603334,1719609098805,-162.125942,0.00026766,2]
[330603335,1719609098814,-195.968576,0.00026766,2]
[330603336,1719609098823,-3000.0,0.0002677,2]
[330603337,1719609098832,-3000.0,0.0002678,2]
[330603338,1719609098841,-3000.0,0.0002679,2]
[330603339,1719609098851,-3000.0,0.000268,2]
[330603340,1719609098860,-3000.0,0.0002681,2]
[330603341,1719609098869,-3000.0,0.0002682,2]
[330603342,1719609098879,-3000.0,0.0002683,2]
[330603343,1719609098888,-3000.0,0.0002684,2]
[330603344,1719609098897,-6356.54,0.00026849,4]
[330603345,1719609098906,-500.0,0.00026849,2]
[330603346,1719609098915,-1053.33,0.00026849,4]
[330603347,1719609098924,-500.0,0.00026849,4]
[330603348,1719609098933,-581.35,0.00026849,4]
[330603349,1719609098942,-2317.09,0.00026849,4]
[330603350,1719609098951,-922.96,0.00026849,4]
[330603351,1719609098960,-834.68,0.00026849,4]
[330603352,1719609098969,-803.38,0.00026849,4]
[330603353,1719609098979,-1513.65,0.00026849,4]
[330603354,1719609098988,-969.26,0.00026849,4]
[330603355,1719609098997,-1279.12,0.00026849,4]
[330603356,1719609099007,-580.44,0.00026849,4]
[330603357,1719609099016,-750.55,0.00026849,4]
[330603358,1719609099030,-527.85,0.00026849,4]
[330603359,1719609099039,-762.9,0.00026849,4]
[330603360,1719609099048,-500.0,0.00026849,4]
[330603361,1719609099059,-794.3,0.00026849,4]
[330603362,1719609099068,-819.47,0.00026849,4]
[330603363,1719609099078,-526.04,0.00026849,4]
[330603364,1719609099089,-905.98,0.00026849,4]
[330603365,1719609099100,-500.0,0.00026849,4]
[330603366,1719609099109,-1589.77,0.00026849,4]
[330603367,1719609099120,-1414.16,0.00026849,4]
[330603368,1719609099130,-514.41,0.00026849,4]
[330603369,1719609099139,-549.62,0.00026849,4]
[330603370,1719609099148,-1020.77,0.00026849,4]
[330603371,1719609099157,-2333.86,0.00026849,4]
[330603372,1719609099166,-718.41,0.00026849,4]
[330603373,1719609099176,-632.14,0.00026849,4]
[330603374,1719609099185,-2254.28,0.00026849,4]
[330603375,1719609099194,-1134.77,0.00026849,4]
[330603376,1719609099204,-552.34,0.00026849,4]
[330603377,1719609099213,-655.59,0.00026849,4]
[330603378,1719609099222,-500.0,0.00026849,4]
[330603379,1719609099232,-1584.44,0.00026849,4]
[330603380,1719609099241,-705.63,0.00026849,4]
[330603381,1719609099251,-992.69,0.00026849,4]
[330603382,1719609099260,-963.94,0.00026849,4]
[330603383,1719609099270,-2618.52,0.00026849,4]
[330603384,1719609099280,-775.03,0.00026849,4]
[330603385,1719609099289,-486.86577621,0.00026849,4]
[330603386,1719609099298,-1047.09,0.00026849,4]
[330603387,1719609099308,-597.64,0.00026849,4]
[330603388,1719609099317,-619.46,0.00026849,4]
[330603389,1719609099327,-1602.1,0.00026849,4]
[330603390,1719609099336,-500.0,0.00026849,4]
[330603391,1719609099346,-1252.86,0.00026849,4]
[330603392,1719609099355,-748.7,0.00026849,4]
[330603393,1719609099364,-3105.39,0.00026849,4]
[330603394,1719609099374,-725.68,0.00026849,4]
[330603395,1719609099384,-1391.86,0.00026849,4]
[330603396,1719609099393,-440.13836249,0.00026849,4]
[330603397,1719609099402,-1221.39,0.00026849,4]
[330603398,1719609099411,-598.89,0.00026849,4]
[330603399,1719609099421,-761.97,0.00026849,4]
[330603400,1719609099430,-500.0,0.00026849,4]
[330603401,1719609099440,-1916.95,0.00026849,4]
[330603402,1719609099449,-911.28,0.00026849,4]
[330603403,1719609099458,-500.0,0.00026849,4]
[330603404,1719609099467,-1274.5,0.00026849,2]
[330603405,1719609099476,-786.07,0.00026849,4]
[330603406,1719609099485,-2096.46,0.00026849,4]
[330603407,1719609099495,-1472.43,0.00026849,4]
[330603408,1719609099504,-3430.95,0.00026849,4]
[330603409,1719609099513,-713.1,0.00026849,4]
[330603410,1719609099521,-1080.39,0.00026849,4]
[330603411,1719609099531,-32522.18,0.00026849,4]
[330603412,1719609099539,-2759.26,0.00026849,4]
[330603413,1719609099656,-1561.25,0.00026849,4]
[330603414,1719609099666,-1056.09,0.00026849,4]
[330603415,1719609099676,-626.89,0.00026849,4]
[330603416,1719609099687,-644.23,0.00026849,4]
[330603417,1719609099698,-919.74,0.00026849,4]
[330603418,1719609099708,-526.73,0.00026849,4]
[330603419,1719609099718,-500.0,0.00026849,4]
[330603420,1719609099728,-900.52,0.00026849,4]
[330603421,1719609099738,-2915.15,0.00026849,4]
[330603422,1719609099747,-1075.26,0.00026849,4]
[330603423,1719609099756,-898.0,0.00026849,4]
[330603424,1719609099766,-2606.56,0.00026849,4]
[330603425,1719609099776,-1017.0,0.00026849,4]
[330603426,1719609099786,-500.0,0.00026849,4]
[330603427,1719609099795,-769.17,0.00026849,4]
[330603428,1719609099805,-724.43,0.00026849,4]
[330603429,1719609099815,-582.6173113,0.00026849,4]
[330603430,1719609099824,-1811.19,0.00026849,4]
[330603431,1719609099834,-745.75,0.00026849,4]
[330603432,1719609099844,-1060.47,0.00026849,4]
[330603433,1719609099853,-555.14,0.00026849,4]
[330603434,1719609099863,-1646.45,0.00026849,4]
[330603435,1719609099873,-561.23,0.00026849,4]
[330603436,1719609099882,-1636.48,0.00026849,4]
[330603437,1719609099892,-2903.41,0.00026849,4]
[330603438,1719609099901,-500.0,0.00026849,4]
[330603439,1719609099911,-1643.03,0.00026849,4]
[330603440,1719609099921,-882.01,0.00026849,4]
[330603441,1719609099930,-23113.58,0.00026849,4]
[330603442,1719609099940,-1414.53,0.00026849,4]
[330603443,1719609099949,-628.52,0.00026849,4]
[330603444,1719609099958,-500.0,0.00026849,4]
[330603445,1719609099967,-500.0,0.00026849,4]
[330603446,1719609099977,-555.85,0.00026849,4]
[330603447,1719609099987,-11320.71,0.00026849,4]
[330603448,1719609099997,-644.76,0.00026849,4]
[330603449,1719609100007,-585.25,0.00026849,4]
[330603450,1719609100022,-756.94,0.00026849,4]
[330603451,1719609100031,-1188.67,0.00026849,4]
[330603452,1719609100039,-788.02,0.00026849,4]
[330603453,1719609100048,-500.0,0.00026849,4]
[330603454,1719609100059,-1280.69,0.00026849,4]
[330603455,1719609100069,-2279.24,0.00026849,4]
[330603456,1719609100079,-500.0,0.00026849,4]
[330603457,1719609100089,-3712.0,0.00026849,4]
[330603458,1719609100100,-4032.61,0.00026849,4]
[330603459,1719609100110,-227.79,0.00026849,4]
[330603460,1719609100120,-1001.0,0.00026849,4]
[330603461,1719609100129,-2069.86,0.00026849,4]
[330603462,1719609100139,-5418.01,0.00026849,4]
[330603463,1719609100148,-826.19,0.00026849,4]
[330603464,1719609100158,-803.14,0.00026849,4]
[330603465,1719609100167,-939.69,0.00026849,4]
[330603466,1719609100177,-60694.4,0.00026849,4]
[330603467,1719609100186,-2175.07,0.00026849,4]
[330603468,1719609100196,-3733.28,0.00026849,4]
[330603469,1719609100205,-7121.33,0.00026849,4]
[330603470,1719609100215,-500.0,0.00026849,4]
[330603471,1719609100224,-4094.82,0.00026849,4]
[330603472,1719609100233,-582.3,0.00026849,4]
[330603473,1719609100242,-521.59,0.00026849,4]
[330603474,1719609100251,-834.09,0.00026849,4]
[330603475,1719609100260,-689.13,0.00026849,4]
[330603476,1719609100269,-1575.66,0.00026849,4]
[330603477,1719609100279,-1770.99,0.00026849,4]
[330603478,1719609100288,-12345.82,0.00026849,4]
[330603479,1719609100297,-651.08,0.00026849,4]
[330603480,1719609100306,-500.0,0.00026849,4]
[330603481,1719609100316,-1018.4,0.00026849,4]
[330603482,1719609100325,-2468.56,0.00026849,4]
[330603483,1719609100334,-12723.98,0.00026849,4]
[330603484,1719609100343,-1210.66,0.00026849,4]
[330603485,1719609100353,-500.0,0.00026849,2]
[330603486,1719609100362,-923.2,0.00026849,4]
[330603487,1719609100371,-2010.28,0.00026849,4]
[330603488,1719609100380,-4814.91,0.00026849,4]
[330603489,1719609100389,-11513.48,0.00026849,4]
[330603490,1719609100398,-506.2,0.00026849,4]
[330603491,1719609100407,-10418.44,0.00026849,4]
[330603492,1719609100416,-478.42016941,0.00026849,4]
[330603493,1719609100426,-500.0,0.00026849,4]
[330603494,1719609100435,-959.34,0.00026849,4]
[330603495,1719609100445,-500.0,0.00026849,4]
[330603496,1719609100454,-1894.29,0.00026849,4]
[330603497,1719609100463,-655.11,0.00026849,4]
[330603498,1719609100472,-1813.93,0.00026849,4]
[330603499,1719609100482,-1715.47,0.00026849,4]
[330603500,1719609100491,-1262.66,0.00026849,4]
[330603501,1719609100500,-761.05,0.00026849,4]
[330603502,1719609100509,-535.3,0.00026849,4]
[330603503,1719609100518,-1055.6,0.00026849,4]
[330603504,1719609100527,-1710.79,0.00026849,4]
[330603505,1719609100537,-2194.15,0.00026849,4]
[330603506,1719609100546,-500.0,0.00026849,4]
[330603507,1719609100555,-979.7,0.00026849,4]
[330603508,1719609100564,-528.59,0.00026849,4]
[330603509,1719609100574,-628.71,0.00026849,4]
[330603510,1719609100583,-750.32,0.00026849,4]
[330603511,1719609100593,-586.77,0.00026849,4]
[330603512,1719609100603,-1021.86,0.00026849,4]
[330603513,1719609100613,-10772.11,0.00026849,4]
[330603514,1719609100623,-740.26,0.00026849,4]
[330603515,1719609100633,-1018.02,0.00026849,4]
[330603516,1719609100642,-3099.44,0.00026849,4]
[330603517,1719609100652,-669.76,0.00026849,4]
[330603518,1719609100662,-600.27,0.00026849,4]
[330603519,1719609100671,-500.0,0.00026849,4]
[330603520,1719609100681,-546.35,0.00026849,4]
[330603521,1719609100691,-4987.38,0.00026849,4]
[330603522,1719609100700,-500.0,0.00026849,4]
[330603523,1719609100710,-4038.76,0.00026849,4]
[330603524,1719609100720,-1461.16,0.00026849,4]
[330603525,1719609100729,-2850.21,0.00026849,4]
[330603526,1719609100738,-3352.17,0.00026849,4]
[330603527,1719609100747,-621.88,0.00026849,4]
[330603528,1719609100757,-683.47,0.00026849,4]
[330603529,1719609100767,-23476.31,0.00026849,4]
[330603530,1719609100776,-6462.45,0.00026849,4]
[330603531,1719609100785,-500.0,0.00026849,4]
[330603532,1719609100795,-1525.02,0.00026849,4]
[330603533,1719609100805,-9156.13,0.00026849,4]
[330603534,1719609100814,-1587.41,0.00026849,4]
[330603535,1719609100823,-2718.89,0.00026849,4]
[330603536,1719609100833,-3000.0,0.0002685,2]
[330603537,1719609100842,-3000.0,0.0002686,2]
[330603538,1719609100851,-3000.0,0.0002687,2]
[330603539,1719609100859,-3000.0,0.0002688,2]
[330603540,1719609100868,-3000.0,0.0002689,2]
[330603541,1719609100877,-456.6,0.00026898,4]
[330603542,1719609100887,-3000.0,0.000269,2]
[330603543,1719609100896,-3000.0,0.0002691,2]
[330603544,1719609100905,-3000.0,0.0002692,2]
[330603545,1719609100914,-3000.0,0.0002693,2]
[330603546,1719609100923,-3000.0,0.0002694,2]
[330603547,1719609100933,-3000.0,0.0002695,2]
[330603548,1719609100942,-3000.0,0.0002696,2]
[330603549,1719609100952,-3148.571299,0.0002697,2]
[330603550,1719609100961,-151.31843755,0.00027,5]
[330603551,1719609100970,-151.33355125,0.00027,5]
[330603552,1719609100979,-162.125942,0.00027097,2]
[330603553,1719609100989,-195.968576,0.00027097,2]
[330603554,1719609100999,-6356.54,0.00027123,4]
[330603555,1719609101008,-500.0,0.00027123,2]
[330603556,1719609101018,-1053.33,0.00027123,4]
[330603557,1719609101031,-500.0,0.00027123,4]
[330603558,1719609101040,-581.35,0.00027123,4]
[330603559,1719609101049,-2317.09,0.00027123,4]
[330603560,1719609101059,-922.96,0.00027123,4]
[330603561,1719609101071,-834.68,0.00027123,4]
[330603562,1719609101080,-803.38,0.00027123,4]
[330603563,1719609101090,-1513.65,0.00027123,4]
[330603564,1719609101099,-969.26,0.00027123,4]
[330603565,1719609101109,-1279.12,0.00027123,4]
[330603566,1719609101119,-580.44,0.00027123,4]
[330603567,1719609101128,-750.55,0.00027123,4]
[330603568,1719609101137,-527.85,0.00027123,4]
[330603569,1719609101146,-762.9,0.00027123,4]
[330603570,1719609101155,-500.0,0.00027123,4]
[330603571,1719609101164,-794.3,0.00027123,4]
[330603572,1719609101174,-819.47,0.00027123,4]
[330603573,1719609101183,-526.04,0.00027123,4]
[330603574,1719609101192,-905.98,0.00027123,4]
[330603575,1719609101202,-500.0,0.00027123,4]
[330603576,1719609101211,-1589.77,0.00027123,4]
[330603577,1719609101220,-1414.16,0.00027123,4]
[330603578,1719609101230,-514.41,0.00027123,4]
[330603579,1719609101239,-549.62,0.00027123,4]
[330603580,1719609101248,-1020.77,0.00027123,4]
[330603581,1719609101256,-2333.86,0.00027123,4]
[330603582,1719609101266,-718.41,0.00027123,4]
[330603583,1719609101274,-632.14,0.00027123,4]
[330603584,1719609101283,-2254.28,0.00027123,4]
[330603585,1719609101293,-1134.77,0.00027123,4]
[330603586,1719609101302,-552.34,0.00027123,4]
[330603587,1719609101311,-655.59,0.00027123,4]
[330603588,1719609101320,-500.0,0.00027123,4]
[330603589,1719609101329,-1584.44,0.00027123,4]
[330603590,1719609101338,-705.63,0.00027123,4]
[330603591,1719609101348,-992.69,0.00027123,4]
[330603592,1719609101357,-963.94,0.00027123,4]
[330603593,1719609101366,-2618.52,0.00027123,4]
[330603594,1719609101375,-775.03,0.00027123,4]
[330603595,1719609101385,-1047.09,0.00027123,4]
[330603596,1719609101394,-597.64,0.00027123,4]
[330603597,1719609101403,-1602.1,0.00027123,4]
[330603598,1719609101413,-619.46,0.00027123,4]
[330603599,1719609101422,-241.75740449,0.00027123,4]
[330603600,1719609101431,-1252.86,0.00027123,4]
[330603601,1719609101440,-748.7,0.00027123,4]
[330603602,1719609101449,-3105.39,0.00027123,4]
[330603603,1719609101459,-725.68,0.00027123,4]
[330603604,1719609101468,-1391.86,0.00027123,4]
[330603605,1719609101477,-1221.39,0.00027123,4]
[330603606,1719609101487,-598.89,0.00027123,4]
[330603607,1719609101496,-761.97,0.00027123,4]
[330603608,1719609101505,-500.0,0.00027123,4]
[330603609,1719609101515,-1916.95,0.00027123,4]
[330603610,1719609101523,-911.28,0.00027123,4]
[330603611,1719609101533,-500.0,0.00027123,4]
[330603612,1719609101542,-1274.5,0.00027123,2]
[330603613,1719609101551,-786.07,0.00027123,4]
[330603614,1719609101560,-2096.46,0.00027123,4]
[330603615,1719609101570,-1472.43,0.00027123,4]
[330603616,1719609101580,-3430.95,0.00027123,4]
[330603617,1719609101589,-713.1,0.00027123,4]
[330603618,1719609101598,-1080.39,0.00027123,4]
[330603619,1719609101608,-2759.26,0.00027123,4]
[330603620,1719609101617,-32522.18,0.00027123,4]
[330603621,1719609101626,-1561.25,0.00027123,4]
[330603622,1719609101636,-1056.09,0.00027123,4]
[330603623,1719609101646,-626.89,0.00027123,4]
[330603624,1719609101655,-644.23,0.00027123,4]
[330603625,1719609101665,-919.74,0.00027123,4]
[330603626,1719609101675,-526.73,0.00027123,4]
[330603627,1719609101684,-500.0,0.00027123,4]
[330603628,1719609101693,-900.52,0.00027123,4]
[330603629,1719609101702,-2915.15,0.00027123,4]
[330603630,1719609101711,-1075.26,0.00027123,4]
[330603631,1719609101720,-898.0,0.00027123,4]
[330603632,1719609101730,-2606.56,0.00027123,4]
[330603633,1719609101739,-1017.0,0.00027123,4]
[330603634,1719609101748,-301.22847724,0.00027123,4]
[330603635,1719609101757,-769.17,0.00027123,4]
[330603636,1719609101767,-724.43,0.00027123,4]
[330603637,1719609101776,-1811.19,0.00027123,4]
[330603638,1719609101786,-745.75,0.00027123,4]
[330603639,1719609101795,-1060.47,0.00027123,4]
[330603640,1719609101804,-555.14,0.00027123,4]
[330603641,1719609101814,-1646.45,0.00027123,4]
[330603642,1719609101823,-561.23,0.00027123,4]
[330603643,1719609101831,-1636.48,0.00027123,4]
[330603644,1719609101841,-2903.41,0.00027123,4]
[330603645,1719609101850,-500.0,0.00027123,4]
[330603646,1719609101859,-1643.03,0.00027123,4]
[330603647,1719609101869,-882.01,0.00027123,4]
[330603648,1719609101878,-23113.58,0.00027123,4]
[330603649,1719609101887,-628.52,0.00027123,4]
[330603650,1719609101896,-1414.53,0.00027123,4]
[330603651,1719609101906,-500.0,0.00027123,4]
[330603652,1719609101915,-500.0,0.00027123,4]
[330603653,1719609101924,-555.85,0.00027123,4]
[330603654,1719609101932,-11320.71,0.00027123,4]
[330603655,1719609101942,-644.76,0.00027123,4]
[330603656,1719609101951,-585.25,0.00027123,4]
[330603657,1719609102073,-756.94,0.00027123,4]
[330603658,1719609102083,-1188.67,0.00027123,4]
[330603659,1719609102093,-788.02,0.00027123,4]